Cogmind - Beta 9 @@@ ROGUE MODE // 2019.10.28 @ 06:53:45 Player: MrPainting Result: Self-destructed Performance ------------- Evolutions (2) 1000 Regions Visited (8) 1600 Robots Destroyed (133) 665 Value Destroyed (3669) 3669 Prototype IDs (11) 220 Alien Tech Used (0) 0 Bonus (667) 667 TOTAL SCORE: 7821 Bonus ------- High Alert Combat Kills 315 Follower Combat Kills 52 Aligned with FarCom 300 Cogmind --------- Core Integrity 147/550 Matter 300/300 Energy 100/100 System Corruption 0% Temperature Cool (0) Location -8/Storage Parts ------- Power (1) Propulsion (4) Utility (4) High-capacity Storage Unit Weapon (2) Inventory (12) Superbattery (2000) High-capacity Matter Pod (200) High-capacity Matter Pod (200) Improved Signal Interpreter Transmission Jammer Improved ECM Suite Hacking Suite Hacking Suite System Shield Peak State ------------ Power Improved Ion Engine Propulsion Light Treads Improved Treads Utility Superbattery Hardened Heavy Armor Plating Weapon Beamcaster Gauss Rifle Inventory High-capacity Storage Unit High-capacity Matter Pod Improved Terrain Scanner Mini Grenade Launcher [Rating: 32] Favorites ----------- Power Improved Ion Engine Engine Improved Ion Engine Power Core Light Nuclear Core Propulsion Light Treads Treads Light Treads Leg Improved Aluminum Leg Utility High-capacity Storage Unit Device Improved Heat Sink Storage High-capacity Storage Unit Processor Improved Targeting Computer Hackware Hacking Suite Protection Hardened Heavy Armor Plating Weapon Gauss Rifle Energy Gun Beamcaster Energy Cannon Beam Cannon Ballistic Gun Gauss Rifle Launcher Mini Grenade Launcher Build | -11 -10 -10 -9 -9 -9 -8 -8 -8 ------- Run | Scr Mat Min Mat Min Exi Min Mat Sto Slots Evolved 4 | . . . 2 . . . 2 . Power . | . . . . . . . . . Propulsion 2 | . . . 1 . . . 1 . Utility 2 | . . . 1 . . . 1 . Weapon . | . . . . . . . . . Parts Attached 100 | 6 17 9 18 9 5 1 4 31 Power 11 | 1 2 1 2 1 . 1 . 3 Engine 10 | 1 2 1 2 1 . . . 3 Core 1 | . . . . . . 1 . . Reactor . | . . . . . . . . . Propulsion 32 | 2 4 2 8 1 . . 2 13 Treads 20 | . . . 4 1 . . 2 13 Leg 12 | 2 4 2 4 . . . . . Wheel . | . . . . . . . . . Hover . | . . . . . . . . . Flight . | . . . . . . . . . Utility 21 | 1 3 . 4 3 5 . 1 4 Device 6 | . . . 1 1 2 . . 2 Storage 7 | 1 1 . . 1 3 . 1 . Processor 1 | . 1 . . . . . . . Hackware 1 | . 1 . . . . . . . Protection 6 | . . . 3 1 . . . 2 Artifact . | . . . . . . . . . Weapon 36 | 2 8 6 4 4 . . 1 11 Energy Gun 7 | . 1 . 1 1 . . . 4 Energy Cannon 1 | . . . 1 . . . . . Ballistic Gun 23 | 2 6 4 2 2 . . 1 6 Ballistic Cannon . | . . . . . . . . . Launcher 5 | . 1 2 . 1 . . . 1 Special Weapon . | . . . . . . . . . Impact Weapon . | . . . . . . . . . Slashing Weapon . | . . . . . . . . . Piercing Weapon . | . . . . . . . . . Special Melee Weapon . | . . . . . . . . . Unidentified Prototypes 11 | . . . . . 3 . . 8 Parts Lost 32 | . 6 4 4 3 . . 1 14 Power 5 | . 1 1 1 . . . . 2 Propulsion 13 | . 2 1 1 2 . . 1 6 Utility 6 | . 1 . 1 . . . . 4 Weapon 8 | . 2 2 1 1 . . . 2 Highest Loss Streak 9 | . 4 3 2 2 . . 1 9 Average Slot Usage (%) 86 | . 91 98 94 91 76 77 69 85 Engine 9 | . 13 13 10 11 11 2 . 8 Core 1 | . . . . . . 8 9 . Treads 20 | . . . 9 27 22 22 15 32 Leg 6 | . 25 27 21 . . . . . Device 3 | . . . 2 10 . . . 3 Storage 11 | . 14 14 11 11 10 11 18 9 Processor 1 | . . 14 1 . . . . . Hackware 1 | . 9 . . . . . . . Protection 9 | . . . 16 11 11 11 9 13 Energy Gun 3 | . 4 . 2 5 11 11 4 . Ballistic Gun 15 | . 20 21 12 14 11 11 13 17 Launcher 1 | . 1 6 . . . . . . Naked Turns . | . . . . . . . . . Heaviest Build 100 | 11 13 21 25 68 68 68 98 100 Greatest Support 92 | 20 26 26 60 63 43 43 60 92 Greatest Overweight (x) 10 | 3 4 1 1 1 1 1 4 10 Average Overweight (x) . | . . . . . . 1 2 . Largest Inventory Capacity 20 | 6 8 8 8 12 12 12 20 20 Average Capacity 11 | 5 6 8 8 9 11 12 20 12 Most Carried 20 | 4 7 8 8 11 12 12 20 20 Average Carried 9 | 2 5 6 7 7 10 11 14 11 Final Capacity 12 | . . . . . . . . 12 Final Carried 9 | . . . . . . . . 9 Class Distribution -------------------- 48% | Scavenger-Mutant 44% | Mutant 7% | Hauler-Mutant Dominant Class ---------------- Mutant | -10/Materials Scavenger-Mutant | -10/Mines Scavenger-Mutant | -9/Materials Scavenger-Mutant | -9/Mines Mutant | -9/Exiles Mutant | -8/Mines Hauler-Mutant | -8/Materials Scavenger-Mutant | -8/Storage Resources | -11 -10 -10 -9 -9 -9 -8 -8 -8 ----------- Run | Scr Mat Min Mat Min Exi Min Mat Sto Matter Collected 3228 | 160 438 431 270 241 130 8 245 1305 Remotely . | . . . . . . . . . Salvage Created 4833 | . 527 291 515 615 . 56 369 2460 Parts 317 | . 45 18 40 26 . 3 28 157 Haulers Intercepted 7 | . 1 . . . . . 1 5 Recyclers Shooed 3 | . . . 1 1 . . . 1 Parts Field Recycled . | . . . . . . . . . Retrieved Matter . | . . . . . . . . . Parts Self-Destructed . | . . . . . . . . . Prevented . | . . . . . . . . . Kills | -11 -10 -10 -9 -9 -9 -8 -8 -8 ------- Run | Scr Mat Min Mat Min Exi Min Mat Sto Combat Hostiles Destroyed 91 | . 14 9 10 11 . 1 7 39 Melee 1 | . . . . . . . . 1 Guns 80 | . 11 6 6 11 . 1 7 38 Cannons 4 | . . . 4 . . . . . AOE 6 | . 3 3 . . . . . . Classes Destroyed 15 | . 8 1 1 4 . 1 . . Worker 10 | . 3 . . 3 . . . 4 Builder 7 | . 2 . . . . . . 5 Tunneler 1 | . 1 . . . . . . . Hauler 7 | . 1 . . . . . 1 5 Recycler 5 | . . . . 2 . . . 3 Mechanic 1 | . . . . 1 . . . . Operator 3 | . 1 . . . . . . 2 Watcher 8 | . 1 . 2 . . . 3 2 Swarmer 21 | . 6 3 . 3 . . 4 5 Grunt 43 | . 8 4 7 4 . . . 20 Brawler 2 | . . . 1 . . . . 1 Duelist 5 | . . . . 3 . . . 2 Sentry 16 | . . 2 2 . . . 2 10 Demolisher 1 | . . . . 1 . . . . Hunter 3 | . . . . . . 1 1 1 Best Kill Streak 12 | . 8 3 5 5 . 1 5 12 Combat Bots Only 6 | . 5 3 3 3 . 1 4 6 Max Kills in Single Turn 3 | . 2 2 1 2 . 1 1 3 Gunslinging 1 | . . 1 . 1 . . . 1 Exploded 2 | . 1 2 . . . . . . Melee 1 | . . . . . . . . 1 Uniques/NPCs Destroyed . | . . . . . . . . . Combat | -11 -10 -10 -9 -9 -9 -8 -8 -8 -------- Run | Scr Mat Min Mat Min Exi Min Mat Sto Damage Taken 5776 | . 842 607 537 558 . 40 282 2910 Core 726 | . 107 99 30 67 . 20 41 362 Absorbed by Shields . | . . . . . . . . . Core Remaining (%) 62 | 100 . 17 . . . 70 . . Volleys Fired 346 | 1 81 21 30 36 . 2 35 140 Largest 2 | 2 2 2 2 2 . 2 2 2 Hottest 103 | 40 60 53 83 98 . 103 103 56 Shots Fired 650 | 2 151 38 59 70 . 4 70 256 Gun 622 | 2 144 35 42 69 . 4 70 256 Cannon 17 | . . . 17 . . . . . Launcher 11 | . 7 3 . 1 . . . . Special . | . . . . . . . . . Kinetic 557 | 2 124 35 30 58 . 2 50 256 Thermal 62 | . . . 29 11 . 2 20 . Explosive 11 | . 7 3 . 1 . . . . Electromagnetic 20 | . 20 . . . . . . . Robot Hit Streak 33 | 2 5 19 9 13 . 6 7 33 Robot Miss Streak 6 | . 5 1 3 4 . . 6 4 Penetration Max 1 | . . . . . . . . 1 Secondary Targets 20 | . 5 1 1 2 . . 1 10 Max Gunslinging Chain 1 | . 1 1 1 1 . . 1 1 Shots Hit Robots 428 | 2 93 30 39 42 . 4 36 182 Core Hits 199 | . 37 15 20 23 . 2 13 89 Critical Hits 6 | . 1 . . . . . 1 4 Critical Kills 1 | . . . . . . . . 1 Critical Parts Destroyed 4 | . 1 . . . . . 1 2 Melee Attacks . | . . . . . . . . . Impact . | . . . . . . . . . Slashing . | . . . . . . . . . Piercing . | . . . . . . . . . Sneak Attacks . | . . . . . . . . . Combat Hostiles . | . . . . . . . . . Follow-up Attacks . | . . . . . . . . . Damage Inflicted 8988 | 23 1460 538 661 747 . 53 875 4631 Guns 8065 | 23 1031 323 415 721 . 53 875 4624 Cannons 246 | . . . 246 . . . . . Explosions 670 | . 429 215 . 26 . . . . Melee . | . . . . . . . . . Ramming 7 | . . . . . . . . 7 Kinetic 7431 | 23 892 323 340 550 . 33 646 4624 Thermal 741 | . . . 321 171 . 20 229 . Explosive 670 | . 429 215 . 26 . . . . Electromagnetic 139 | . 139 . . . . . . . Impact . | . . . . . . . . . Slashing . | . . . . . . . . . Piercing . | . . . . . . . . . Highest Corruption . | . . . . . . . . . Average Corruption . | . . . . . . . . . Corruption Purged . | . . . . . . . . . Overload Shots . | . . . . . . . . . Overflow Damage 42 | . 5 37 . . . . . . Projectiles . | . . . . . . . . . Explosions 42 | . 5 37 . . . . . . Melee . | . . . . . . . . . Knockbacks . | . . . . . . . . . Impact . | . . . . . . . . . Kinetic . | . . . . . . . . . Secondary . | . . . . . . . . . Self-Inflicted Damage 84 | . . 36 . 48 . . . . Shots 2 | . . 1 . 1 . . . . Rammed 2 | . . . . . . . . 2 Targets Rammed 3 | . . . . . . . . 3 Kicked . | . . . . . . . . . Crushed 1 | . . . . . . . . 1 Highest Temperature 506 | . 30 20 84 6 . 88 420 506 Average Temperature 142 | . 13 7 26 3 . 47 167 177 Received Heat Transfer 2235 | . 267 222 228 42 . . 18 1458 Effects 19 | . . . . . . . 2 17 Shutdowns 6 | . . . . . . . 1 5 Energy Bleed 3 | . . . . . . . 1 2 Interference 4 | . . . . . . . . 4 Matter Decay 3 | . . . . . . . . 3 Short Circuit 3 | . . . . . . . . 3 Siege Activations . | . . . . . . . . . Robots Corrupted . | . . . . . . . . . Combat Hostiles . | . . . . . . . . . Parts Fried . | . . . . . . . . . Impact Corruptions . | . . . . . . . . . Robots Melted . | . . . . . . . . . Combat Hostiles . | . . . . . . . . . Parts Melted . | . . . . . . . . . Heat Transferred 1433 | . . . 693 296 . 37 407 . Parts Sabotaged . | . . . . . . . . . Parts Stolen . | . . . . . . . . . Parts Stripped . | . . . . . . . . . Power Chain Reactions . | . . . . . . . . . Missiles Intercepted . | . . . . . . . . . Alert | -11 -10 -10 -9 -9 -9 -8 -8 -8 ------- Run | Scr Mat Min Mat Min Exi Min Mat Sto Peak Influence 775 | . 247 231 300 311 . 30 209 775 Average Influence 197 | . 101 118 153 146 . 16 68 385 Maximum Alert Level 3 | . 1 1 1 1 . . 1 3 Low Security (%) 66 | . . . . . . . . . Level 1 18 | . . . . . . . . . Level 2 12 | . . . . . . . . . Level 3 2 | . . . . . . . . . Level 4 . | . . . . . . . . . Level 5 . | . . . . . . . . . High Security . | . . . . . . . . . Max Security . | . . . . . . . . . Squads Dispatched 16 | . 5 . 2 2 . . . 7 Investigation 3 | . 1 . . 1 . . . 1 Extermination . | . . . . . . . . . Reinforcement 9 | . 4 . 2 . . . . 3 Assault 1 | . . . . 1 . . . . Garrison 3 | . . . . . . . . 3 Intercept . | . . . . . . . . . Construction Impeded 1 | . . . . . . . . 1 Haulers Reinforced . | . . . . . . . . . Stealth | -11 -10 -10 -9 -9 -9 -8 -8 -8 --------- Run | Scr Mat Min Mat Min Exi Min Mat Sto Distress Signals 7 | . 2 . 1 . . . . 4 Communications Jammed . | . . . . . . . . . Distress Signals . | . . . . . . . . . Times Spotted 140 | . 27 9 13 18 . 1 13 59 Peak Tracking Total 7 | . 7 3 4 4 . 1 4 7 Tactical Retreats 6 | . 2 . . 1 . . . 3 Traps | -11 -10 -10 -9 -9 -9 -8 -8 -8 ------- Run | Scr Mat Min Mat Min Exi Min Mat Sto Traps Triggered 5 | . 1 . . . . . . 4 Indirectly . | . . . . . . . . . Trap Hack Attempts . | . . . . . . . . . Triggered . | . . . . . . . . . Disarmed . | . . . . . . . . . Reprogrammed . | . . . . . . . . . Reused . | . . . . . . . . . Traps Extracted . | . . . . . . . . . Installed . | . . . . . . . . . Triggered . | . . . . . . . . . Machines | -11 -10 -10 -9 -9 -9 -8 -8 -8 ---------- Run | Scr Mat Min Mat Min Exi Min Mat Sto Machines Disabled 6 | . 1 . . . . . . 5 Max in Single Turn 1 | . 1 . . . . . . 1 Machines Sabotaged . | . . . . . . . . . Garrisons Compromised . | . . . . . . . . . Overloaded Fab Kills . | . . . . . . . . . Fab Network Shutdowns . | . . . . . . . . . Hacking | -11 -10 -10 -9 -9 -9 -8 -8 -8 --------- Run | Scr Mat Min Mat Min Exi Min Mat Sto Machines Accessed 4 | . . . . 1 . . . 3 Terminals 2 | . . . . . . . . 2 Fabricators . | . . . . . . . . . Repair Stations . | . . . . . . . . . Recycling Units 1 | . . . . . . . . 1 Scanalyzers . | . . . . . . . . . Garrison Access . | . . . . . . . . . Total Hacks 4 | . . . . 1 . . . 3 Successful 4 | . . . . 1 . . . 3 Failed . | . . . . . . . . . Catastrophic . | . . . . . . . . . Database Lockouts . | . . . . . . . . . Manual 1 | . . . . . 1 . . . Terminals 2 | . . . . . . . . 2 Fabricators . | . . . . . . . . . Repair Stations . | . . . . . . . . . Recycling Units 1 | . . . . . . . . 1 Scanalyzers . | . . . . . . . . . Garrison Access . | . . . . . . . . . Terminal Hacks 3 | . . . . 1 . . . 2 Open Door 2 | . . . . 1 . . . 1 Zone Layout 1 | . . . . . . . . 1 Fabricator Hacks . | . . . . . . . . . Repair Station Hacks . | . . . . . . . . . Recycling Unit Hacks 1 | . . . . . . . . 1 Retrieve Components 1 | . . . . . . . . 1 Scanalyzer . | . . . . . . . . . Garrison Access Hacks . | . . . . . . . . . Unauthorized Hacks . | . . . . . . . . . Terminals . | . . . . . . . . . Fabricators . | . . . . . . . . . Repair Stations . | . . . . . . . . . Recycling Units . | . . . . . . . . . Scanalyzers . | . . . . . . . . . Garrison Access . | . . . . . . . . . Data Cores Recovered . | . . . . . . . . . Used . | . . . . . . . . . Hacking Detections . | . . . . . . . . . Full Trace Events . | . . . . . . . . . Feedback Events . | . . . . . . . . . Feedback Blocked . | . . . . . . . . . Robot Schematics Acquired . | . . . . . . . . . Robots Built . | . . . . . . . . . Matter . | . . . . . . . . . Time . | . . . . . . . . . Total Robot Build Rating . | . . . . . . . . . Part Schematics Acquired . | . . . . . . . . . Parts Built . | . . . . . . . . . Matter . | . . . . . . . . . Time . | . . . . . . . . . Total Part Build Rating . | . . . . . . . . . Parts Repaired . | . . . . . . . . . Time . | . . . . . . . . . Parts Recycled . | . . . . . . . . . Recycled Matter . | . . . . . . . . . Retrieved Matter . | . . . . . . . . . Retrieved Components 2 | . . . . . . . . 2 Parts Scanalyzed . | . . . . . . . . . Part Schematics Acquired . | . . . . . . . . . Parts Damaged . | . . . . . . . . . Bothacking | -11 -10 -10 -9 -9 -9 -8 -8 -8 ------------ Run | Scr Mat Min Mat Min Exi Min Mat Sto Used RIF Installer . | . . . . . . . . . Robots Hacked . | . . . . . . . . . Non-combat . | . . . . . . . . . Combat . | . . . . . . . . . Robot Hacks Applied . | . . . . . . . . . Relay Couplers Released . | . . . . . . . . . Robots Rewired . | . . . . . . . . . Allies Hacked . | . . . . . . . . . Hacks Repelled . | . . . . . . . . . Allies | -11 -10 -10 -9 -9 -9 -8 -8 -8 -------- Run | Scr Mat Min Mat Min Exi Min Mat Sto Total Allies 1 | . . . . 1 . . . . Largest Group 1 | . . . . 1 . . . . Highest-Rated Group 31 | . . . . 31 . . . . Highest-Rated Ally 31 | . . . . 31 . . . . Total Orders 1 | . . . . . . 1 . . EXPLORE 1 | . . . . . . 1 . . Ally Attacks 18 | . . . . 18 . . . . Total Damage 355 | . . . . 355 . . . . Kills 6 | . . . . 6 . . . . Allies Corrupted . | . . . . . . . . . Allies Melted . | . . . . . . . . . Intel | -11 -10 -10 -9 -9 -9 -8 -8 -8 ------- Run | Scr Mat Min Mat Min Exi Min Mat Sto Robot Analysis Total . | . . . . . . . . . Derelict Logs Recovered 2 | . . 1 . 1 . . . . Drone Launches 1 | . . . . . 1 . . . Drone Recoveries . | . . . . . . . . . Exploration | -11 -10 -10 -9 -9 -9 -8 -8 -8 ------------- Run | Scr Mat Min Mat Min Exi Min Mat Sto Turns Passed 5404 | 86 561 548 325 1167 562 130 530 1495 Spaces Moved 2480 | 52 182 380 124 618 303 62 192 567 Core 35 | 20 14 . . . . . . 1 Treads 1813 | . . . 72 618 303 62 192 566 Legs 632 | 32 168 380 52 . . . . . Wheels . | . . . . . . . . . Hover . | . . . . . . . . . Flight . | . . . . . . . . . Fastest Speed 50 | 50 120 120 120 160 160 180 180 160 Average Speed 159 | 130 130 120 152 164 179 180 210 165 Slowest Speed 550 | 200 250 150 180 180 180 180 240 550 Overloaded Moves . | . . . . . . . . . Propulsion Burnouts . | . . . . . . . . . Robots Hopped . | . . . . . . . . . Cave-ins Triggered . | . . . . . . . . . Exploration Rate (%) 56 | 4 31 82 15 98 72 98 20 85 Regions Visited 8 Branch Regions 5 Pre-discovered Areas 1 | . . . . 1 . . . . Known Exits Taken . | . . . . . . . . . Unknown Exits Taken 8 | 1 1 1 1 1 1 1 1 . Scrap Searched 4 | . . 2 . 2 . . . . Spaces Dug . | . . . . . . . . . Terrain Destroyed 86 | . 44 28 . 11 . . 1 2 Melee . | . . . . . . . . . Projectile 3 | . . . . . . . 1 2 AOE 83 | . 44 28 . 11 . . . . Actions | -11 -10 -10 -9 -9 -9 -8 -8 -8 --------- Run | Scr Mat Min Mat Min Exi Min Mat Sto Total 3289 | 68 364 432 202 704 322 77 249 871 Wait 192 | . 62 12 11 21 . 10 7 69 Move 2472 | 51 181 379 123 617 302 61 191 567 Hop . | . . . . . . . . . Pick Up 96 | 10 12 9 8 12 10 1 12 22 Fast Attach 18 | . 2 1 3 1 2 . . 9 Attach 35 | 6 5 3 4 4 1 . 3 9 Detach . | . . . . . . . . . Swap 47 | . 10 5 11 4 2 1 1 13 Drop 80 | . 11 2 12 9 5 2 . 39 Fire 346 | 1 81 21 30 36 . 2 35 140 Melee . | . . . . . . . . . Ram 1 | . . . . . . . . 1 Kick . | . . . . . . . . . Crush 2 | . . . . . . . . 2 Escape Stasis . | . . . . . . . . . Rewire . | . . . . . . . . . Trap . | . . . . . . . . . Miscellaneous . | . . . . . . . . . Route ------- -11/Scrapyard -10/Materials (discovered 2 exits: [*Min x2]) -10/Mines -9/Materials -9/Mines (discovered 3 exits: *Mat x2 / *Exi) -9/Exiles -8/Mines (discovered 2 exits: *Mat x2) -8/Materials -8/Storage History --------- Turn | Location | Event 24 | -11/Scrapyard | Discovered new exit (range 16) 87 | -11/Scrapyard | Entered Materials 95 | -10/Materials | Discovered new exit (range 13) 306 | -10/Materials | Build established: Mutant 531 | -10/Materials | Discovered new exit (range 16) 611 | -10/Materials | Lost 4 parts (1p2n1u) 648 | -10/Materials | Entered Mines 721 | -10/Mines | Core integrity fell below 50% 754 | -10/Mines | Lost 3 parts (1p2w) 928 | -10/Mines | Learned Materials stockpile data 974 | -10/Mines | Core integrity fell below 20% 1137 | -10/Mines | Discovered new exit (range 14) 1196 | -10/Mines | Entered Materials 1196 | -9/Materials | Evolved 2 slots: Propulsion x1, Utility x1 1283 | -9/Materials | Build established: Scavenger-Mutant 1458 | -9/Materials | Discovered new exit (range 15) 1521 | -9/Materials | Entered Mines 1522 | -9/Mines | Met a Derelict testing a Signal Generator 1531 | -9/Mines | Met a Derelict bent on vengeance 1576 | -9/Mines | Learned Materials stockpile data 1729 | -9/Mines | Assembled infested the area 1889 | -9/Mines | Discovered new exit (range 13) 2026 | -9/Mines | Learned location of Storage (-8) 2522 | -9/Mines | Discovered new exit (range 10) 2592 | -9/Mines | Met a Derelict shopkeep closing up shop 2679 | -9/Mines | Deemed a non-threat by the Exiles lab entrance 2681 | -9/Mines | Discovered new exit (range 5) 2688 | -9/Mines | Entered Exiles 2732 | -9/Exiles | Met 8R-AWN 2762 | -9/Exiles | Met EX-HEX 2813 | -9/Exiles | Met EX-BIN 2838 | -9/Exiles | Aligned with FarCom system 2840 | -9/Exiles | Given EX-Vault access code 2881 | -9/Exiles | Opened EX-Vault 2892 | -9/Exiles | Found Prototype Storage 2893 | -9/Exiles | Identified Superbattery 2899 | -9/Exiles | Found Prototype Device 2899 | -9/Exiles | Identified Trap Reconfigurator 2905 | -9/Exiles | Found Prototype Device 2905 | -9/Exiles | Identified Supersonic Drone Bay 2932 | -9/Exiles | Build established: Mutant 2975 | -9/Exiles | Warned to stay clear of 0b10 Research branches 3116 | -9/Exiles | Met EX-DEC 3228 | -9/Exiles | Discovered new exit (range 13) 3250 | -9/Exiles | Left Exiles lab with Superbattery 3250 | -9/Exiles | Entered Mines 3250 | -8/Mines | Accompanied by 1 ally 3258 | -8/Mines | Discovered new exit (range 67) 3261 | -8/Mines | Discovered new exit (range 18) 3380 | -8/Mines | Entered Materials 3380 | -8/Materials | Evolved 2 slots: Propulsion x1, Utility x1 3675 | -8/Materials | Build established: Hauler-Mutant 3864 | -8/Materials | Discovered new exit (range 15) 3910 | -8/Materials | Entered Storage 4057 | -8/Storage | Build established: Scavenger-Mutant 4411 | -8/Storage | Garrison activated, responded to threat 5099 | -8/Storage | Build established: Mutant 5395 | -8/Storage | Core integrity fell below 50% 5405 | -8/Storage | Self-destructed Last Messages --------------- 05367_ Acquired 30 matter. 05368_ Gauss Rifle destroyed. 05372_ Imp. Treads destroyed. 05375_ Slug penetrates G-50 Soldier. 05384_ Imp. Heat Sink destroyed. 05385_ Slug penetrates G-50 Soldier. 05386_ Imp. Treads destroyed. 05387_ G-50 Soldier destroyed. 05389_ Slug penetrates G-47 Trooper. 05390_ Gauss Rifle destroyed. 05390_ Arm. Treads destroyed. 05391_ Slammed into G-47 Trooper. 05392_ Crushed G-47 Trooper. 05392_ G-47 Trooper destroyed. 05392_ Lgt. Deuterium Engine destroyed. 05393_ Acquired 24 matter. 05394_ Imp. Treads destroyed. 05394_ K-01 Serf collects debris. 05394_ Slammed into K-01 Serf. 05397_ K-01 Serf collects debris. Map ----- +----------------------------------------------------+ | | | | | | | | | | | | | | | | | | | | | | | | | | | | | | | | | | | ###########???????#######################???? | | # ######### ! # [ ==*!#???? | | # + + ! """ #"" != ##???? | | # ######### % R" #"Y !! #????? | | # #???????# """ #"" [ #????? | | ?###+############## k # #????? | | ???# /ggg% # =* #????? | | ???#![ ########### %%! #####+####????? | | ???#[%] #??????"####@############ % #??????? | | ??# !*^#??????" " #??????? | | ??# ^ ^#??????" !% k "%"#??????? | | ??# #??????"#T##+############ " #??????? | | ??# #???????### % #???## ##??????? | | ??# #?????????# #????#! #???????? | | ??# =%["?????????# #????# !######### | | ??# * T?????????# #????/ |*[!%% !! | | ??# "?????????# #????# ! !]!] !* | | ??# ####??????# """"" #????##+###/##### | | ??# #??????#%""""" #?????? ?! ??? | | ??######## #??????# """"" #?????? ? ? | | ?????????# #??????#+#########?????? """ """ # | | ?????????# +??????#%###########???? """ ""? # | | ?????????#=#??????#%# !!! #???? """ """?? | | ?????????#[######## # ^ !!! !##??? """ """?? | | ?????????#%![%**! **+= ^ !!! #??? "?" "???? | | ??????##?#!==######=#== #????? ? ! ???? | | ??????# # *%######"# ########?????#?#%#???? | | ?# = " # # !!! ####### ###??????#????? | | ?#= + # "" ## #???????????? | | ?# " # # """"" ## """#?????????### | | ??????#T## # """"" ## """#????????#""" | | ??????##?# + ## """#???????##""T | | ?????????# # """"" [## #???????# | +----------------------------------------------------+ Best States ------------- Heat Dissipation 45 Energy Generation 14 Energy Capacity 280 Matter Stores 300 Matter Capacity 300 Sight Range 16 Terrain Scan Density 10 Armor Coverage 750 Resistance: KI 20 Weapon Shielding 33 Evasion (%) 40 Targeting Accuracy 6 Recoil Reduction 4 Offensive Hacking 10 Item Schematics ----------------- None Robot Schematics ------------------ None Fabricated ------------ Nothing Alien Tech Used ----------------- None Achievements -------------- None Challenges ------------ None Game ------ Seed CombatDroneMallet Manual? 0 Play Time 00:45:58 Cumulative 35.0 hours Start 2019.10.28 @ 06:03:34 End 2019.10.28 @ 06:53:45 Sessions 1 Manual Loads 0 Difficulty Rogue Special Mode None Game No. 55 Rogue 55 Adventurer 0 Explorer 0 Win Type - Total 0 Types 0/0/0/0/0/0/0 Lore% 26 Gallery% 31 Achievement% 24 Wizard Run 0 Options --------- ASCII 0 Keyboard 0 Movement Mouse Keybinds 0 Fullscreen 1 Font 18/SmallcapsGlow Map View 76x50 Tactical HUD 1 Map Filters NONE Filters NONE Steam 1 RUN: 2973e3e9-ef44-4e3f-87ab-eb46bc90738a